Cogmind - Beta 14 @@@ ROGUE MODE // 2024.10.02 @ 19:56:53 Player: Zane Result: Self-destructed Performance ------------- Evolutions (1) 500 Regions Visited (3) 600 Robots Destroyed (23) 115 Value Destroyed (529) 529 Prototype IDs (2) 40 Alien Tech Used (0) 0 Bonus (0) 0 TOTAL SCORE: 1784 Bonus ------- None Cogmind --------- Core Integrity 328/400 Matter 275/300 Energy 125/125 System Corruption 0% Temperature Cool (0) Movement Walking (120) Location -9/Materials Parts ------- > --- POWER (1) -------- Light Ion Engine > --- PROPULSION (2) --- Aluminum Leg Improved Aluminum Leg > --- UTILITY (4) ------ Small Storage Unit Targeting Computer Hacking Suite > --- WEAPON (2) ------- EM Pulse Cannon Light Assault Rifle > --- INVENTORY (8) ---- Aluminum Leg Improved Aluminum Leg Improved Hover Unit Experimental Sensor Array Improved Signal Interpreter Improved Terrain Scan Processor Small Laser EM Pulse Cannon Peak State ------------ > --- POWER ------------ Light Ion Engine > --- PROPULSION ------- Aluminum Leg Improved Aluminum Leg > --- UTILITY ---------- Small Storage Unit Targeting Computer Hacking Suite > --- WEAPON ----------- EM Pulse Cannon Light Assault Rifle > --- INVENTORY -------- Aluminum Leg Improved Aluminum Leg Improved Hover Unit Experimental Sensor Array Improved Signal Interpreter Improved Terrain Scan Processor Small Laser EM Pulse Cannon [Rating: 15] Favorites ----------- Power Light Ion Engine Engine Light Ion Engine Power Core Light Nuclear Core Propulsion Improved Aluminum Leg Leg Improved Aluminum Leg Hover Unit Improved Hover Unit Utility Small Storage Unit Storage Small Storage Unit Processor Targeting Computer Hackware Hacking Suite Weapon Light Assault Rifle Energy Gun Small Laser Energy Cannon EM Pulse Cannon Ballistic Gun Light Assault Rifle Build | -11 -10 -10 -9 ------- Run | Yrd Mat Min Mat Slots Evolved 2 | . . . 2 Power . | . . . . Propulsion . | . . . . Utility 2 | . . . 2 Weapon . | . . . . Parts Attached 26 | 6 6 12 2 Power 5 | 1 1 3 . Engine 4 | 1 1 2 . Core 1 | . . 1 . Reactor . | . . . . Propulsion 11 | 2 4 5 . Treads . | . . . . Leg 9 | 2 2 5 . Wheel . | . . . . Hover 2 | . 2 . . Flight . | . . . . Utility 3 | 1 1 . 1 Device . | . . . . Storage 1 | 1 . . . Processor 1 | . 1 . . Hackware 1 | . . . 1 Protection . | . . . . Artifact . | . . . . Weapon 7 | 2 . 4 1 Energy Gun 3 | . . 3 . Energy Cannon 1 | . . . 1 Ballistic Gun 3 | 2 . 1 . Ballistic Cannon . | . . . . Launcher . | . . . . Special Weapon . | . . . . Impact Weapon . | . . . . Slashing Weapon . | . . . . Piercing Weapon . | . . . . Special Melee Weapon . | . . . . Unidentified Prototypes . | . . . . Parts Lost 8 | . . 8 . Power 2 | . . 2 . Propulsion 2 | . . 2 . Utility . | . . . . Weapon 4 | . . 4 . Highest Loss Streak 3 | . . 3 . To Critical Strikes 1 | . . 1 . Average Slot Usage (%) 93 | . 98 92 88 Engine 12 | . 14 12 11 Core 1 | . . 1 . Leg 20 | . 1 26 22 Hover 6 | . 26 . . Storage 13 | . 14 14 11 Processor 13 | . 12 14 11 Energy Gun 9 | . . 13 3 Ballistic Gun 12 | . 28 7 11 Peak Build Rating 15 | 6 10 13 15 Average Rating 9 | 4 9 9 14 On Entrance 6 | . 6 10 9 Naked Turns . | . . . . Heaviest Build 15 | 10 12 13 15 Greatest Support 26 | 20 26 26 23 Greatest Overweight (x) 1 | 1 . . . Average Overweight (x) . | . . . . Largest Inventory Capacity 8 | 8 8 8 8 Average Capacity 7 | 7 8 8 8 Most Carried 8 | 3 8 8 8 Average Carried 6 | 1 7 6 7 Final Capacity 8 | 8 8 8 8 Final Carried 8 | 3 8 6 8 Class Distribution -------------------- 97% | Mutant Dominant Class ---------------- Mutant | -10/Materials Mutant | -10/Mines Mutant | -9/Materials Resources | -11 -10 -10 -9 ----------- Run | Yrd Mat Min Mat Matter Collected 487 | 260 116 111 . Remotely . | . . . . Salvage Created 725 | . 237 417 71 Parts 48 | . 18 23 7 Haulers Intercepted . | . . . . Recyclers Shooed 1 | . . 1 . Parts Field Recycled . | . . . . Retrieved Matter . | . . . . Parts Self-Destructed . | . . . . Prevented . | . . . . Kills | -11 -10 -10 -9 ------- Run | Yrd Mat Min Mat Combat Hostiles Destroyed 18 | . 6 9 3 Guns 17 | . 6 9 2 Cannons 1 | . . . 1 Classes Destroyed 7 | . 4 3 . Worker 1 | . . 1 . Tunneler 1 | . . 1 . Recycler 1 | . . 1 . Operator 1 | . 1 . . Watcher 1 | . 1 . . Swarmer 7 | . 2 3 2 Grunt 11 | . 4 6 1 Best Kill Streak 3 | . 3 3 3 Combat Bots Only 3 | . 2 3 3 Max Kills in Single Turn 1 | . 1 1 1 Gunslinging . | . . . . Exploded . | . . . . Melee . | . . . . Uniques/NPCs Destroyed . | . . . . Combat | -11 -10 -10 -9 -------- Run | Yrd Mat Min Mat Hostile Shots Fired 187 | . 32 113 42 Missed 73 | . 12 44 17 Damage Taken 1293 | . 189 891 213 Core 314 | . 19 223 72 Absorbed by Shields . | . . . . Core Remaining (%) 51 | 100 . 3 . Volleys Fired 89 | . 33 51 5 Largest 2 | . 2 2 2 Hottest 90 | . 40 90 83 Shots Fired 152 | . 66 76 10 Gun 147 | . 66 76 5 Cannon 5 | . . . 5 Launcher . | . . . . Special . | . . . . Kinetic 99 | . 66 28 5 Thermal 48 | . . 48 . Explosive . | . . . . Electromagnetic 5 | . . . 5 Robot Hit Streak 12 | . 9 12 2 Robot Miss Streak 5 | . 5 2 1 Penetration Max . | . . . . Secondary Targets 1 | . 1 . . Max Gunslinging Chain 1 | . 1 . . Shots Hit Robots 102 | . 37 60 5 Core Hits 51 | . 19 28 4 Critical Kills . | . . . . Critical Parts Destroyed 1 | . . . 1 Critical Strikes 3 | . . 2 1 Burn 2 | . . 2 . Destroy 1 | . . . 1 Melee Attacks . | . . . . Impact . | . . . . Slashing . | . . . . Piercing . | . . . . Sneak Attacks . | . . . . Combat Hostiles . | . . . . Follow-up Attacks . | . . . . Damage Inflicted 1031 | . 321 655 55 Guns 952 | . 307 615 30 Cannons 25 | . . . 25 Explosions . | . . . . Melee . | . . . . Ramming 54 | . 14 40 . Kinetic 507 | . 307 170 30 Thermal 445 | . . 445 . Explosive . | . . . . Electromagnetic 25 | . . . 25 Impact . | . . . . Slashing . | . . . . Piercing . | . . . . Highest Corruption . | . . . . Average Corruption . | . . . . Corruption Purged . | . . . . Corruption Blocked . | . . . . Overload Shots . | . . . . Overflow Damage . | . . . . Projectiles . | . . . . Explosions . | . . . . Melee . | . . . . Knockbacks 1 | . . 1 . Impact 1 | . . 1 . Kinetic . | . . . . Secondary . | . . . . Self-Inflicted Damage 7 | . 7 . . Shots . | . . . . Rammed 3 | . 3 . . Targets Rammed 12 | . 3 9 . Kicked 9 | . . 9 . Crushed . | . . . . Highest Temperature 354 | . 20 354 87 Average Temperature 58 | . 5 85 39 Received Heat Transfer 576 | . 60 480 36 Siege Activations . | . . . . Robots Corrupted . | . . . . Combat Hostiles . | . . . . Parts Fried . | . . . . Impact Corruptions . | . . . . Robots Melted . | . . . . Combat Hostiles . | . . . . Parts Melted 2 | . . 2 . Heat Transferred 1326 | . . 1326 . Parts Sabotaged . | . . . . Parts Stolen . | . . . . Parts Stripped . | . . . . Power Chain Reactions . | . . . . Alert | -11 -10 -10 -9 ------- Run | Yrd Mat Min Mat Peak Influence 277 | . 277 155 145 Initial 35 | . . 35 . Average 61 | . 130 43 44 Maximum Alert Level 1 | . 1 . . Low Security (%) 92 | 100 66 100 100 Level 1 7 | . 33 . . Level 2 . | . . . . Level 3 . | . . . . Level 4 . | . . . . Level 5 . | . . . . High Security . | . . . . Max Security . | . . . . Squads Dispatched 4 | . 3 . 1 Investigation 1 | . 1 . . Extermination . | . . . . Reinforcement 3 | . 2 . 1 Assault . | . . . . Garrison . | . . . . Intercept . | . . . . Searches Triggered . | . . . . Construction Impeded . | . . . . Haulers Reinforced . | . . . . Active Scanning Responses . | . . . . Cargo Convoy Interrupts . | . . . . Stealth | -11 -10 -10 -9 --------- Run | Yrd Mat Min Mat Distress Signals 2 | . 1 . 1 Communications Jammed . | . . . . Distress Signals . | . . . . Times Spotted 49 | . 22 16 11 Peak Tracking Total 9 | . 4 3 9 Tactical Retreats 8 | . 2 5 1 Traps | -11 -10 -10 -9 ------- Run | Yrd Mat Min Mat Traps Triggered 1 | . 1 . . Indirectly . | . . . . Trap Hack Attempts . | . . . . Triggered . | . . . . Disarmed . | . . . . Reprogrammed . | . . . . Reused . | . . . . Traps Extracted . | . . . . Installed . | . . . . Triggered . | . . . . Machines | -11 -10 -10 -9 ---------- Run | Yrd Mat Min Mat Machines Disabled . | . . . . Max in Single Turn . | . . . . Machines Repaired . | . . . . Machines Dismantled . | . . . . Machines Sabotaged . | . . . . Overloaded Fab Kills . | . . . . Hacking | -11 -10 -10 -9 --------- Run | Yrd Mat Min Mat Machines Accessed 6 | . 4 1 1 Terminals 6 | . 4 1 1 Fabricators . | . . . . Repair Stations . | . . . . Recycling Units . | . . . . Scanalyzers . | . . . . Garrison Access . | . . . . Total Hacks 12 | . 8 3 1 Successful 4 | . 3 . 1 Failed 8 | . 5 3 . Catastrophic 2 | . . 2 . Database Lockouts . | . . . . Manual . | . . . . Terminals 12 | . 8 3 1 Fabricators . | . . . . Repair Stations . | . . . . Recycling Units . | . . . . Scanalyzers . | . . . . Garrison Access . | . . . . Terminal Hacks 4 | . 3 . 1 Prototype ID Bank 1 | . . . 1 Locate Traps 1 | . 1 . . Hauler Manifests 1 | . 1 . . Zone Layout 1 | . 1 . . Fabricator Hacks . | . . . . Repair Station Hacks . | . . . . Recycling Unit Hacks . | . . . . Scanalyzer . | . . . . Garrison Access Hacks . | . . . . Unauthorized Hacks . | . . . . Terminals . | . . . . Fabricators . | . . . . Repair Stations . | . . . . Recycling Units . | . . . . Scanalyzers . | . . . . Garrison Access . | . . . . Data Cores Recovered . | . . . . Used . | . . . . Hacking Detections 5 | . 4 1 . Full Trace Events . | . . . . Feedback Events . | . . . . Feedback Blocked . | . . . . Robot Schematics Acquired . | . . . . Robots Built . | . . . . Authchips . | . . . . Time . | . . . . Total Robot Build Rating . | . . . . Part Schematics Acquired . | . . . . Parts Built . | . . . . Authchips . | . . . . Time . | . . . . Total Part Build Rating . | . . . . Parts Repaired . | . . . . Time . | . . . . Parts Recycled . | . . . . Recycled Matter . | . . . . Retrieved Matter . | . . . . Retrieved Components . | . . . . Parts Scanalyzed . | . . . . Part Schematics Acquired . | . . . . Parts Damaged . | . . . . Bothacking | -11 -10 -10 -9 ------------ Run | Yrd Mat Min Mat Used RIF Installer . | . . . . Robots Hacked . | . . . . Non-combat . | . . . . Combat . | . . . . Robot Hacks Applied . | . . . . Relay Couplers Released . | . . . . Fabnet Peak Effective % . | . . . . Robots Rewired . | . . . . Allies Hacked . | . . . . Hacks Repelled . | . . . . Allies | -11 -10 -10 -9 -------- Run | Yrd Mat Min Mat Total Allies . | . . . . Largest Group . | . . . . Highest-Rated Group . | . . . . Highest-Rated Ally . | . . . . Total Orders . | . . . . Ally Attacks . | . . . . Total Damage . | . . . . Kills . | . . . . Allies Corrupted . | . . . . Allies Melted . | . . . . Intel | -11 -10 -10 -9 ------- Run | Yrd Mat Min Mat Robot Analysis Total . | . . . . Derelict Logs Recovered 1 | . . 1 . Drone Launches . | . . . . Drone Recoveries . | . . . . Exploration | -11 -10 -10 -9 ------------- Run | Yrd Mat Min Mat Turns Passed 1942 | 55 422 1307 158 Spaces Moved 1630 | 38 547 931 114 Core 7 | 7 . . . Treads . | . . . . Legs 1066 | 31 11 910 114 Wheels . | . . . . Hover 557 | . 536 21 . Flight . | . . . . Fastest Speed 50 | 50 56 56 120 Average Speed 98 | 115 57 118 120 Slowest Speed 120 | 120 120 120 120 Overloaded Moves . | . . . . Propulsion Burnouts . | . . . . Robots Hopped . | . . . . Cave-ins Triggered . | . . . . Exploration Rate (%) 50 | 3 82 102 15 Regions Visited 3 Branch Regions 1 Pre-discovered Areas 1 | . . 1 . Known Exits Taken . | . . . . Unknown Exits Taken 3 | 1 1 1 . Scrap Searched 1 | . . 1 . Spaces Dug . | . . . . Terrain Destroyed . | . . . . Melee . | . . . . Projectile . | . . . . AOE . | . . . . Terrain Rammed . | . . . . Walls Destroyed . | . . . . Machines Disabled . | . . . . Actions | -11 -10 -10 -9 --------- Run | Yrd Mat Min Mat Total 1833 | 46 601 1060 126 Wait 55 | . 3 52 . Move 1627 | 37 546 930 114 Hop . | . . . . Pick Up 16 | 3 6 3 4 Fast Attach 11 | 6 1 4 . Attach 5 | . . 4 1 Detach . | . . . . Swap 10 | . 5 4 1 Drop 8 | . 4 3 1 Fire 89 | . 33 51 5 Melee . | . . . . Ram 3 | . 3 . . Kick 9 | . . 9 . Crush . | . . . . Escape Stasis . | . . . . Rewire . | . . . . Trap . | . . . . Miscellaneous . | . . . . Route ------- -11/Scrapyard -10/Materials (discovered 3 exits: *Mat x2 / *Min) -10/Mines (discovered 2 exits: *Mat x2) -9/Materials History --------- Turn | Location | Event 11 | -11/Scrapyard | Discovered new exit (range 14) 56 | -11/Scrapyard | Entered Materials 98 | -10/Materials | Discovered new exit (range 11) 306 | -10/Materials | Build established: Mutant 320 | -10/Materials | Discovered new exit (range 13) 438 | -10/Materials | Discovered new exit (range 12) 478 | -10/Materials | Entered Mines 489 | -10/Mines | Discovered new exit (range 7) 542 | -10/Mines | Lost 3 parts (1n2w) 620 | -10/Mines | Found a damaged Exp. Sensor Array with a note attached 622 | -10/Mines | Found Prototype Device 678 | -10/Mines | Core integrity fell below 50% 736 | -10/Mines | Learned location of Zion (-7) 764 | -10/Mines | Discovered new exit (range 4) 1319 | -10/Mines | Core integrity fell below 20% 1785 | -10/Mines | Entered Materials 1785 | -9/Materials | Evolved 2 slots: Utility x2 1943 | -9/Materials | Self-destructed Last Messages --------------- 01872_ S-10 Pest destroyed. 01879_ G-34 Mercenary destroyed. 01885_ S-10 Pest suffers critical hit (Destroy). 01885_ Destroyed Lgt. Ion Engine. 01888_ S-10 Pest destroyed. 01888_ R-06 Scavenger collects Lgt. Assault Rifle. 01893_ S-10 Pest destroyed. 01893_ R-06 Scavenger collects Ion Engine. 01897_ R-06 Scavenger collects Sml. Laser. 01898_ R-06 Scavenger collects Lgt. Ion Engine. 01901_ R-06 Scavenger collects Flight Unit. 01903_ R-06 Scavenger collects Aluminum Leg. 01904_ R-06 Scavenger collects Flight Unit. 01908_ O-16 Technician: "IFF HANDSHAKE FAILED. SECURING TERMINAL." 01909_ G-34 Mercenary destroyed. 01916_ ALERT: Hostiles spotted, dispatching reinforcements to Terminal M004. 01928_ K-01 Serf collects debris. Map ----- +----------------------------------------------------+ | ?????????????????????????????????????????????????? | | ?????????????????????????????????????????????????? | | ?????????????????????????????????????????????????? | | ?????????????????????????????????????????????????? | | ?????????????????????????????????????????????????? | | ?????????????????????????????????????????????????? | | ?????????????????????????????????????????????????? | | ?????????????????????????????????????????????????? | | ?????????????????????????????????????????????????? | | ?????????????????????????????????????????????????? | | ?????????????????????????????????????????????????? | | ???????????????????????#####?????????????????????? | | ??????????????????????? ?????????????????????? | | ??????????????????????? ?????????????????????? | | ??????????????????????? ?????????????????????? | | ???????????????????????# #?????????????????????? | | ???????????????????????# #?????????????????????? | | ???????????????????????# #?????????????????????? | | ???????????????????????# #?????????????????????? | | ???????????????????????# #?????????????????????? | | ???????????????????????# #?????????????????????? | | ???????????????????????# #?????????????????????? | | ?????????????????????? # #?????????????????????? | | ?????????????????????? # r#?????????????????????? | | ????????????????????? # #?????????????????????? | | ?????????########???? # @u#?????????????????????? | | ?????????#!!]]!!#???? # #?????????????????????? | | ?????????#! !#??? # #????##???????????????? | | ?????????# #??? # #??## ##??????????????? | | ########## ####+### #? =#??????????????? | | * l#? #??????????????? | | =%! # "" #??????????????? | | = Y # S"" #??????????????? | | #############+#### ##### + "" #??????????????? | | ?????????# T ## #???# # #??????????????? | | ?????????# ##+##### ########??????????????? | | ?????????# """ # # #? #??????????????? | | ?????????# """ # """ # a#?""" #??????????????? | | ?????????# """ # """ # # """ #??????????????? | | ?????????# # """ #s # """ #??????????????? | | ?????????######## + + #??????????????? | | ????????????????# # # #??????????????? | | ??????################## #########?????????????? | | ??????# ######## #???????????? | | ??????# # #???????????? | | ??????# # / ?????????? | | ??????# # ###?????????? | | ??????# """ """ + ??????????? | | ????????""" """ # ??????????? | | ?????????"" """ # "??????????? | +----------------------------------------------------+ Best States ------------- Heat Dissipation 28 Energy Generation 14 Energy Capacity 250 Matter Stores 300 Matter Capacity 300 Sight Range 16 Terrain Scan Density 10 Evasion (%) 55 Targeting Accuracy 5 Offensive Hacking 10 Item Schematics ----------------- None Robot Schematics ------------------ None Fabricated ------------ Nothing Alien Tech Used ----------------- None Achievements -------------- Close Call Challenges ------------ None Game ------ Seed ClaymoresTractorSlayer Manual? 0 Play Time 00:21:33 Cumulative 9.7 hours Start 2024.10.02 @ 19:35:24 End 2024.10.02 @ 19:56:53 Sessions 1 Manual Loads 0 Difficulty Rogue Special Mode None Game No. 10 Rogue 10 Adventurer 0 Explorer 0 Win Type - Total 0 Types 0/0/0/0/0/0/0/0/0 Lore% 10 Gallery% 16 Achievement% 16 Wizard Run 0 Options --------- Layout 1 ASCII 0 Keyboard 0 Movement Mouse Keybinds 0 Fullscreen 1 Font 24/Smallcaps Map View 50x35 Zoom Use 0% Tactical HUD 1 Map Filters NONE Filters NONE Steam 1 RUN: 82e6510f-82b1-4138-b329-ffd2022ebe4b